fUSD/lending_fUSD_20240103
["ID","MTS","AMOUNT","RATE_DAILY","PERIOD"]
[310088363,1704313839249,-937.85,0.0003042,2]
[310088364,1704313839258,-400.26,0.0003042,2]
[310088365,1704313839267,-180.53,0.00030503,2]
[310088366,1704313839276,-151.45,0.00030609,2]
[310088367,1704313839286,-1006.46554,0.0003065,2]
[310088368,1704313839295,-300.0,0.000308,11]
[310088369,1704313839305,-179.69,0.00030801,2]
[310088370,1704313839315,-524.58,0.0003081,2]
[310088371,1704313839325,-151.45,0.00030883,2]
[310088372,1704313839334,-2639.51335516,0.000309,2]
[310088373,1704313839343,-600.0,0.000309,11]
[310088374,1704313839353,-519.01831502,0.000309,3]
[310088375,1704313839362,-334.75749674,0.00030973,3]
[310088376,1704313839371,-171.0,0.00030973,2]
[310088377,1704313839380,-368.5063198,0.00031,2]
[310088378,1704313839390,-248884.35834956,0.00031,2]
[310088379,1704313839403,-44921.47078207,0.00031,2]
[310088380,1704313839455,-623.31486525,0.00031,2]
[310088386,1704313841052,-178.84137544,0.00027845,2]
[310088387,1704313841062,-457.63628563,0.000297,2]
[310088388,1704313841075,-499.67038643,0.000297,2]
[310088389,1704313841086,-1899.04382794,0.000297,2]
[310088390,1704313841096,-1299.52717206,0.00031,2]
[310088391,1704313841107,-478.20657606,0.00031,2]
[310088392,1704313841118,-2875.84371778,0.00031,2]
[310088397,1704313842783,-178.84137543,0.00028873,2]
[310088398,1704313842792,-50917.27853722,0.00031,2]
[310088399,1704313842802,-92775.28941558,0.00031,3]
[310088400,1704313842847,-5724.093056,0.00031,3]
[310088401,1704313842860,-2251.85692984,0.00031,3]
[310088402,1704313842871,-148009.953857,0.00031,3]
[310088403,1704313842920,-261.28269064,0.00031,3]
[310088408,1704313845699,-572.66011619,0.00027941,2]
[310088409,1704313845712,-261.60174887,0.00027941,2]
[310088420,1704313846155,-928.53290994,0.00027941,2]
[310088421,1704313846164,-199.99978254,0.00029699,2]
[310088422,1704313846174,-321.98969254,0.00029699,2]
[310088423,1704313846185,-178.84137543,0.000299,2]
[310088424,1704313846195,-65238.72200729,0.00031,3]
[310088425,1704313846211,-715.47138881,0.00031,3]
[310088426,1704313846226,-9563.69423188,0.00031,3]
[310088427,1704313846237,-3420.84,0.00031,3]
[310088428,1704313846249,-1969.84,0.00031,3]
[310088429,1704313846260,-320.9360001,0.00031,3]
[310088430,1704313846270,-395.032,0.00031,3]
[310088431,1704313846282,-3325.5,0.00031,3]
[310088432,1704313846293,-3980.18448593,0.00031,3]
[310088433,1704313846313,-615.1736429,0.00031,3]
[310088436,1704314123212,250.0,0.000192,2]
[310088438,1704314174262,249750.0,0.000192,2]
[310088439,1704314174290,841928.19923059,0.000192,2]
[310088440,1704314175414,4228.99772104,0.00019104,2]
[310088441,1704314182433,322.96937849,0.000192,2]
[310088442,1704314190246,718842.41783461,0.000192,2]
[310088444,1704314234142,283.42004374,0.000192,2]
[310088445,1704314235196,155.0,0.000192,2]
[310088446,1704314236256,885.68698013,0.000192,2]
[310088447,1704314236300,4596.8589161,0.000192,2]
[310088448,1704314236643,847.57934376,0.000195,2]
[310088449,1704314238738,197.09974009,0.000192,2]
[310088450,1704314239048,155.0,0.000192,2]
[310088451,1704314239875,3191.54654176,0.000192,2]
[310088452,1704314240038,1094.42498153,0.0002,2]
[310088453,1704314240528,290.75642152,0.000192,2]
[310088454,1704314241643,1030.51455742,0.000192,2]
[310088455,1704314241704,281.95610178,0.0002,2]
[310088456,1704314243391,155.0,0.0002,2]
[310088457,1704314243568,987.62898229,0.000192,2]
[310088458,1704314244916,1147.62749519,0.00019008,2]
[310088459,1704314245375,155.0,0.0001728,2]
[310088460,1704314246075,8051.80302722,0.000192,2]
[310088461,1704314247864,155.0,0.000192,2]
[310088462,1704314248045,264.59102315,0.00018624,2]
[310088463,1704314248149,4397.30324001,0.000192,2]
[310088464,1704314248906,541.25137539,0.000192,2]
[310088465,1704314252126,283.42004374,0.000192,2]
[310088466,1704314255963,1094.42498153,0.0002,2]
[310088467,1704314256960,282.16800593,0.000192,2]
[310088468,1704314261378,155.42325274,0.0002,2]
[310088469,1704314262149,1030.51455742,0.000192,2]
[310088470,1704314262192,281.95610178,0.0002,2]
[310088471,1704314262248,3613.76151731,0.00019999,2]
[310088472,1704314262328,471.80282371,0.00019999,2]
[310088473,1704314263340,156.37014632,0.0001728,2]
[310088474,1704314263561,987.62898229,0.000192,2]
[310088475,1704314267952,695.52274718,0.00019199,2]
[310088476,1704314269014,241.7259282,0.00019199,2]
[310088477,1704314271657,3206.48054606,0.00022,2]
[310088478,1704314274138,283.42004374,0.000192,2]
[310088479,1704314275953,572.85073482,0.0002,2]
[310088480,1704314275977,521.57424671,0.0002,2]
[310088481,1704314277709,281.95610178,0.0002,2]
[310088482,1704314279574,432.76236415,0.000192,2]
[310088483,1704314281642,1030.51455742,0.000192,2]
[310088485,1704314293953,1220.38848696,0.0002,2]
[310088486,1704314295706,281.95610178,0.0002,2]
[310088487,1704314296131,378.18681598,0.000192,2]
[310088488,1704314301665,1022.68700567,0.000192,2]
[310088489,1704314313710,386.06358719,0.0002,2]
[310088490,1704314343948,200.0,0.0002189,2]
[310088491,1704314345731,170.32,0.00016712,2]
[310088494,1704314390535,587.166525,0.00022919,2]
[310088496,1704314409582,300.97766189,0.0002294,2]
[310088501,1704314467406,151.1906815,0.00022825,2]
[310088504,1704314496576,5301.06313403,0.0002294,2]
[310088505,1704314496599,5000.0,0.0002294,2]
[310088506,1704314496621,2000.0,0.0002294,2]
[310088507,1704314496644,3360.38960385,0.0002294,2]
[310088509,1704314518552,15661.45273788,0.00022825,2]
[310088510,1704314530062,200.6517746,0.00022923,2]
[310088515,1704314540559,10761.61243792,0.00022825,2]
[310088519,1704314568574,2230.07978356,0.0003,120]
[310088522,1704314619262,552.64851241,0.00022999,2]
[310088523,1704314620416,157.0740485,0.00022999,2]
[310088524,1704314621575,155.0,0.00022999,2]
[310088525,1704314622493,764.35468494,0.00022999,2]
[310088526,1704314622602,155.0,0.00022999,2]
[310088527,1704314622885,155.0,0.00022999,2]
[310088528,1704314623223,5316.89841574,0.00022999,2]
[310088529,1704314624416,375.68843416,0.00022999,2]
[310088530,1704314624444,522.20683445,0.00022999,2]
[310088531,1704314624472,403.41499984,0.00022999,2]
[310088532,1704314624831,364.03356213,0.0003,120]
[310088533,1704314625440,1042.9001587,0.00022999,2]
[310088535,1704314629090,2263.96943386,0.00022999,2]
[310088536,1704314629336,155.0,0.00023,7]
[310088537,1704314629989,155.0,0.00022999,2]
[310088538,1704314630202,2771.73067757,0.00022999,2]
[310088539,1704314631116,211.0113246,0.00022999,2]
[310088540,1704314632047,155.0,0.00022999,2]
[310088541,1704314632608,326.53,0.00021763,2]
[310088542,1704314633580,214.90351322,0.00022999,2]
[310088543,1704314633768,1199.70378855,0.00022999,2]
[310088544,1704314635493,552.64851241,0.00022999,2]
[310088545,1704314635534,865.30395912,0.00022999,2]
[310088546,1704314636609,155.0,0.00022999,2]
[310088548,1704314637669,155.0,0.00022999,2]
[310088549,1704314638664,403.04158324,0.00022999,2]
[310088550,1704314638692,156.91563642,0.00022999,2]
[310088551,1704314638894,155.0,0.00022999,2]
[310088552,1704314638922,5316.89841574,0.00022999,2]
[310088553,1704314639150,764.35468494,0.00022999,2]
[310088554,1704314639581,236.2975173,0.00022999,2]
[310088555,1704314639709,171.35798069,0.00022999,2]
[310088556,1704314640953,526.58804281,0.00022999,2]
[310088557,1704314641092,2263.96943386,0.00022999,2]
[310088558,1704314641371,471.80282371,0.00022999,2]
[310088559,1704314642409,246.92607394,0.00022999,2]
[310088560,1704314643752,220.37171058,0.00022999,2]
[310088561,1704314644413,228.31766393,0.00022999,2]
[310088562,1704314644706,2771.73067757,0.00022999,2]
[310088563,1704314644820,305.08149848,0.0003,120]
[310088565,1704314645121,211.0113246,0.00022999,2]
[310088566,1704314645436,1042.9001587,0.00022999,2]
[310088567,1704314645493,155.0,0.00022999,2]
[310088568,1704314645525,557.08113756,0.00022999,2]
[310088569,1704314645554,547.80678023,0.00022999,2]
[310088570,1704314645600,214.90351322,0.00022976,2]
[310088571,1704314645943,1848.22696457,0.00022999,2]
[310088572,1704314646058,155.0,0.00022884,2]
[310088573,1704314646475,155.0,0.00022999,2]
[310088574,1704314646511,158.15784711,0.00022999,2]
[310088575,1704314647330,1359.5177437,0.00022999,2]
[310088576,1704314647758,399.25567591,0.00022999,2]
[310088577,1704314647792,810.14255603,0.00022999,2]
[310088578,1704314648052,155.0,0.00022999,2]
[310088579,1704314648227,155.0,0.00022999,2]
[310088580,1704314648270,5085.2560873,0.00022999,2]
[310088581,1704314649278,158.28692601,0.00022999,2]
[310088582,1704314649443,865.30395912,0.00022999,2]
[310088583,1704314650286,2612.12944822,0.00022999,2]
[310088584,1704314650417,155.0,0.00022999,2]
[310088585,1704314650833,155.0,0.00022999,2]
[310088586,1704314651392,155.0,0.00022999,7]
[310088587,1704314651613,4473.72062021,0.00022999,2]
[310088588,1704314651676,204.81790268,0.00022999,2]
[310088589,1704314652602,161.41451183,0.00022999,2]
[310088590,1704314653387,552.64851241,0.00022999,2]
[310088591,1704314653710,171.35798069,0.00022999,2]
[310088592,1704314654505,161.67633359,0.00022999,2]
[310088593,1704314654760,155.0,0.00022999,2]
[310088594,1704314655966,2130.95546807,0.00022999,2]
[310088595,1704314656496,189.8886037,0.00022999,2]
[310088596,1704314657077,2132.6911642,0.00022999,2]
[310088597,1704314657129,155.0,0.00022999,2]
[310088598,1704314657372,471.80282371,0.00022999,2]
[310088599,1704314657417,190.41054613,0.00022999,2]
[310088600,1704314657574,233.65624485,0.00022999,2]
[310088601,1704314657605,693.59855735,0.00022999,2]
[310088602,1704314657813,7485.68006583,0.00022999,2]
[310088603,1704314657955,1846.62546847,0.00022999,2]
[310088604,1704314658453,155.0,0.00022999,2]
[310088605,1704314658912,526.58804281,0.00022999,2]
[310088606,1704314658940,5316.89841574,0.00022999,2]
[310088607,1704314659840,557.08113756,0.00022884,2]
[310088608,1704314659874,547.80678023,0.00022999,2]
[310088609,1704314660785,446.17403311,0.00022999,2]
[310088610,1704314661085,214.47459225,0.00022999,2]
[310088611,1704314661129,211.0113246,0.00022999,2]
[310088612,1704314661161,155.0,0.00022999,2]
[310088613,1704314661474,155.0,0.00022999,2]
[310088614,1704314661914,418.57590266,0.00022999,2]
[310088615,1704314661952,166.89887039,0.00022999,2]
[310088616,1704314662227,176.30186968,0.00022999,2]
[310088617,1704314662415,155.0,0.00022999,2]
[310088618,1704314662761,33287.6707948,0.00022999,2]
[310088619,1704314663211,155.0,0.00022999,2]
[310088620,1704314663429,262.52666332,0.00022999,2]
[310088621,1704314663587,214.90351322,0.00022976,2]
[310088622,1704314663874,2468.0415723,0.00022999,2]
[310088623,1704314663901,254.81984417,0.00022999,2]
[310088624,1704314663928,543.71241042,0.00022999,7]
[310088625,1704314664039,251.85007283,0.00020699,2]
[310088626,1704314664267,5085.2560873,0.00022999,2]
[310088627,1704314664309,2263.61347039,0.00022999,2]
[310088628,1704314664515,158.15784711,0.00022999,2]
[310088629,1704314664550,360.54533661,0.00022999,2]
[310088630,1704314664780,155.0,0.00022769,2]
[310088631,1704314664980,158.57659008,0.00022999,2]
[310088632,1704314665491,164.31445068,0.00022999,2]
[310088633,1704314665607,4473.72062021,0.00022999,2]
[310088634,1704314665830,4611.87269733,0.00022999,2]
[310088635,1704314666449,155.0,0.00022999,2]
[310088636,1704314666566,401.16267658,0.00022309,2]
[310088637,1704314666712,2762.4534669,0.00022999,2]
[310088639,1704314667095,2263.96943386,0.00022999,2]
[310088640,1704314667429,161.27389787,0.00022999,2]
[310088641,1704314668413,276.91868229,0.00022999,2]
[310088642,1704314668974,513.94401011,0.00022999,2]
[310088643,1704314669001,301.34081716,0.00022999,2]
[310088644,1704314669441,186.64500977,0.00022999,2]
[310088645,1704314670258,1703.69901651,0.00022999,2]
[310088646,1704314670527,161.67633359,0.00022999,2]
[310088647,1704314670782,840.51157263,0.00022999,2]
[310088648,1704314671288,155.0,0.00022999,2]
[310088649,1704314671328,155.0,0.00022999,7]
[310088650,1704314672098,1909.21560663,0.00022999,2]
[310088651,1704314672991,196.11052816,0.00022999,2]
[310088652,1704314673366,284.48599854,0.00022999,2]
[310088653,1704314673397,16713.83662006,0.00022999,2]
[310088654,1704314673703,520.00185062,0.00022999,2]
[310088655,1704314675264,3035.94965715,0.00022999,2]
[310088656,1704314676517,264.6466645,0.00022998,2]
[310088657,1704314676908,3181.30577157,0.00022999,2]
[310088658,1704314677887,543.71241042,0.00022999,7]
[310088659,1704314678083,160.13125081,0.00022999,2]
[310088660,1704314678787,446.17403311,0.00022234,2]
[310088661,1704314679029,234.89015367,0.00022999,2]
[310088662,1704314679904,248.37394867,0.00022999,2]
[310088663,1704314680070,10492.4099566,0.00022999,2]
[310088665,1704314684563,351.51513522,0.00022309,2]
[310088667,1704314687275,155.0,0.00022484,2]
[310088668,1704314688602,158.17684616,0.000229,2]
[310088669,1704314693335,155.0,0.00024981,7]
[310088670,1704314693703,521.85404499,0.00022999,2]
[310088671,1704314693877,290.15078436,0.00022999,7]
[310088692,1704314696796,446.17403311,0.00022232,2]
[310088693,1704314707287,155.0,0.00022482,2]
[310088694,1704314707467,599.999999,0.00029,30]
[310088695,1704314716851,1028.0,0.00022999,2]
[310088696,1704314717047,408.99703681,0.00022232,2]
[310088698,1704314737495,155.0,0.00022999,2]
[310088699,1704314741587,161.26561784,0.00022999,2]
[310088700,1704314743994,176.88,0.00019023,2]
[310088701,1704314744400,2468.0415723,0.00022999,2]
[310088702,1704314747755,3847.47639643,0.00022999,2]
[310088703,1704314747810,202.61761696,0.00022999,2]
[310088704,1704314749000,155.0,0.00022999,2]
[310088705,1704314749245,155.0,0.00022999,2]
[310088706,1704314749383,523.53043704,0.00022999,2]
[310088707,1704314750041,234.89015367,0.00022999,2]
[310088708,1704314751166,343.04565361,0.00022999,2]
[310088709,1704314751779,1424.62607917,0.00022999,2]
[310088710,1704314751936,232.44610427,0.00022999,2]
[310088711,1704314753433,3181.30577157,0.00022999,2]
[310088712,1704314753460,155.0,0.00022999,2]
[310088718,1704314758740,264.6466645,0.00022999,2]
[310088719,1704314781432,170.32,0.00016712,2]
[310088720,1704314782399,471.80282371,0.00022999,2]
[310088721,1704314782496,865.30395912,0.00022999,2]
[310088722,1704314785458,150.0,0.00022629,2]
[310088723,1704314786778,399.25567591,0.00022999,2]
[310088724,1704314787083,301.34081716,0.00022999,2]
[310088725,1704314788347,552.64851241,0.00022999,2]
[310088726,1704314790798,1909.21560663,0.00022999,2]
[310088727,1704314790829,7485.68006583,0.00022999,2]
[310088728,1704314792145,155.0,0.00022999,2]
[310088729,1704314794097,2132.6911642,0.00022999,2]
[310088730,1704314794711,171.35798069,0.00022999,2]
[310088731,1704314795787,840.51157263,0.00022999,2]
[310088732,1704314796425,190.41054613,0.00022999,2]
[310088733,1704314797944,5316.89841574,0.00022999,2]
[310088734,1704314797995,196.11052816,0.00022999,2]
[310088735,1704314801085,233.65624485,0.00022999,2]
[310088736,1704314801463,155.0,0.00022999,2]
[310088737,1704314801521,161.67633359,0.00022999,2]
[310088738,1704314804535,557.08113756,0.00022999,2]
[310088739,1704314804603,214.90351322,0.00022999,2]
[310088740,1704314805937,360.54533661,0.00022999,2]
[310088741,1704314805977,155.0,0.00022999,2]
[310088742,1704314806543,547.80678023,0.00022999,2]
[310088743,1704314807422,161.27389787,0.00022999,2]
[310088744,1704314812232,155.0,0.00022999,2]
[310088745,1704314814417,284.48599854,0.00022999,2]
[310088746,1704314817901,523.53043704,0.00022999,2]
[310088747,1704314817992,3847.47639643,0.00022999,2]
[310088748,1704314818272,202.61761696,0.00022999,2]
[310088749,1704314821287,5085.2560873,0.00022999,2]
[310088750,1704314822088,161.26561784,0.00022999,2]
[310088751,1704314824447,232.44610427,0.00022999,2]
[310088752,1704314825075,234.89015367,0.00022999,2]
[310088755,1704314829364,343.04565361,0.00022999,2]
[310088756,1704314829946,620.21196217,0.00022998,2]
[310088757,1704314841257,264.6466645,0.00022999,2]
[310088758,1704314843953,687.49923855,0.00022358,2]
[310088759,1704314853429,150.0,0.00022292,2]
[310088760,1704314858966,865.30395912,0.00022999,2]
[310088761,1704314861049,552.64851241,0.00022999,2]
[310088762,1704314862889,471.80282371,0.00022999,2]
[310088763,1704314867282,399.25567591,0.00022999,2]
[310088764,1704314868639,196.11052816,0.00022999,2]
[310088765,1704314869322,1909.21560663,0.00022999,2]
[310088766,1704314874329,840.51157263,0.00022999,2]
[310088767,1704314874453,5316.89841574,0.00022999,2]
[310088768,1704314879331,171.35798069,0.00022999,2]
[310088769,1704314881042,547.80678023,0.00022999,2]
[310088770,1704314882692,155.0,0.00022999,2]
[310088771,1704314882928,161.27389787,0.00022999,2]
[310088772,1704314883105,233.65624485,0.00022999,2]
[310088773,1704314883139,214.90351322,0.00022999,2]
[310088774,1704314883341,155.0,0.00022999,2]
[310088775,1704314884929,190.41054613,0.00022999,2]
[310088776,1704314888467,155.0,0.00022999,2]
[310088777,1704314888613,360.54533661,0.00022999,2]
[310088778,1704314891786,5085.2560873,0.00022999,2]
[310088779,1704314892408,523.53043704,0.00022999,2]
[310088780,1704314892971,232.44610427,0.00022999,2]
[310088781,1704314900507,3847.47639643,0.00022999,2]
[310088782,1704314902905,284.48599854,0.00022999,2]
[310088783,1704314903880,343.04565361,0.00022999,2]
[310088784,1704314915778,264.6466645,0.00022999,2]
[310088785,1704314933395,471.80282371,0.00022999,2]
[310088786,1704314943476,865.30395912,0.00022999,2]
[310088787,1704314945744,171.35798069,0.00022999,2]
[310088788,1704314945816,1909.21560663,0.00022999,2]
[310088789,1704314951789,399.25567591,0.00022999,2]
[310088790,1704314953002,5316.89841574,0.00022999,2]
[310088791,1704314953036,196.11052816,0.00022999,2]
[310088792,1704314954840,840.51157263,0.00022999,2]
[310088793,1704314955848,155.0,0.00022999,2]
[310088794,1704314957617,360.54533661,0.00022999,2]
[310088795,1704314957646,214.90351322,0.00022999,2]
[310088796,1704314959536,547.80678023,0.00022999,2]
[310088797,1704314959873,190.41054613,0.00022999,2]
[310088798,1704314961944,161.27389787,0.00022999,2]
[310088799,1704314967274,233.65624485,0.00022999,2]
[310088800,1704314973790,232.44610427,0.00022999,2]
[310088801,1704314974291,5085.2560873,0.00022999,2]
[310088802,1704314974917,523.53043704,0.00022999,2]
[310088803,1704314981019,3847.47639643,0.00022999,2]
[310088804,1704314984272,264.6466645,0.00022999,2]
[310088805,1704314984393,343.04565361,0.00022999,2]
[310088806,1704314989412,284.48599854,0.00022999,2]
[310088807,1704315003924,471.80282371,0.00022999,2]
[310088808,1704315015984,865.30395912,0.00022999,2]
[310088809,1704315022305,399.25567591,0.00022999,2]
[310088810,1704315022339,1909.21560663,0.00022999,2]
[310088811,1704315026945,161.27389787,0.00022999,2]
[310088812,1704315028053,547.80678023,0.00022999,2]
[310088824,1704315031830,-279.69657276,0.00023,2]
[310088825,1704315031842,-591.6425038,0.00023,2]
[310088826,1704315031852,-396.12039886,0.00023022,2]
[310088827,1704315031862,-168.92472391,0.00023025,2]
[310088828,1704315031872,-139.19296943,0.00023144,2]
[310088829,1704315031896,-106.2100801,0.00023144,2]
[310088830,1704315031906,-240.25755095,0.00023164,2]
[310088831,1704315031920,-44.22844759,0.00023164,2]
[310088832,1704315031930,-213.55678641,0.00023165,2]
[310088833,1704315031959,-129.4888672,0.00023165,2]
[310088834,1704315031968,-1763.76056801,0.00023165,2]
[310088835,1704315031980,-2083.71582842,0.00023165,2]
[310088836,1704315031991,-3036.6124624,0.00023166,2]
[310088837,1704315032003,-3248.19528749,0.00023166,2]
[310088838,1704315032035,-393.11402,0.00023164,2]
[310088839,1704315032047,-299.84,0.00023164,2]
[310088840,1704315032059,-172.34993912,0.00023164,2]
[310088841,1704315032069,-402.93391464,0.00023166,2]
[310088842,1704315032107,-797.9384013,0.00023166,2]
[310088843,1704315032117,-263.40473358,0.00023166,2]
[310088844,1704315032126,-2038.6568673,0.00023166,2]
[310088845,1704315032138,-335.38807822,0.00023166,2]
[310088846,1704315032151,-8118.36501108,0.00023166,2]
[310088847,1704315032160,-264.6466645,0.00023166,2]
[310088848,1704315032170,-471.80282371,0.00023166,2]
[310088849,1704315032179,-264.19316917,0.00023167,2]
[310088850,1704315032188,-252.45349666,0.00023167,2]
[310088851,1704315032198,-840.51157263,0.00023167,2]
[310088852,1704315032207,-196.11052816,0.00023167,2]
[310088853,1704315032216,-360.54533661,0.00023167,2]
[310088854,1704315032226,-190.00550758,0.00023167,2]
[310088855,1704315032235,-5085.2560873,0.00023167,2]
[310088856,1704315032245,-523.53043704,0.00023167,2]
[310088857,1704315032255,-5316.89841574,0.00023168,2]
[310088858,1704315032265,-33287.6707948,0.00023168,2]
[310088859,1704315032274,-150.0,0.0002317,2]
[310088860,1704315032283,-150.0,0.0002317,2]
[310088861,1704315032293,-556.22408528,0.00023173,2]
[310088862,1704315032302,-580.84395807,0.00023258,2]
[310088863,1704315032315,-155.0,0.00023258,2]
[310088864,1704315032325,-2464.81575234,0.00023262,2]
[310088866,1704315032335,-313.74,0.00023262,2]
[310088868,1704315032345,-326.39,0.00023262,2]
[310088869,1704315032355,-251.44969674,0.0002329,2]
[310088871,1704315032364,-193.48111135,0.0002329,2]
[310088873,1704315032375,-202.84578995,0.0002329,2]
[310088876,1704315032385,-275.98246239,0.0002329,2]
[310088878,1704315032394,-160.8940582,0.0002329,2]
[310088881,1704315032405,-814.78,0.0002329,2]
[310088884,1704315032414,-1377.81514833,0.00023291,2]
[310088887,1704315032423,-500.0,0.000233,2]
[310088890,1704315032433,-1065.05,0.00023537,2]
[310088892,1704315032442,-200.0,0.00023556,2]
[310088894,1704315032451,-250.0,0.00023581,2]
[310088896,1704315032460,-500.0,0.00023583,2]
[310088898,1704315032470,-1852.42,0.0002361,2]
[310088900,1704315032479,-202.95625307,0.0002363,2]
[310088904,1704315032489,-171.86,0.0002363,2]
[310088907,1704315032498,-23890.0,0.00023632,2]
[310088910,1704315032508,-150.0,0.00023657,2]
[310088912,1704315032517,-166.52,0.00023685,2]
[310088914,1704315032526,-2000.0,0.00023817,2]
[310088917,1704315032536,-155.43369151,0.00023981,2]
[310088920,1704315032547,-155.0,0.00023981,2]
[310088923,1704315032557,-260.52991191,0.00023981,2]
[310088926,1704315032566,-386.33549374,0.00023981,2]
[310088929,1704315032576,-156.19133947,0.00023982,2]
[310088932,1704315032586,-417.97435004,0.00023983,2]
[310088935,1704315032596,-696.57,0.00023984,2]
[310088938,1704315032605,-1595.0295242,0.00024,2]
[310088941,1704315032614,-1418.81,0.00024017,2]
[310088944,1704315032624,-326.53,0.00024027,2]
[310088947,1704315032633,-295.08,0.00024062,2]
[310088950,1704315032643,-1012.25,0.00024181,2]
[310088953,1704315032652,-171.86,0.00024418,2]
[310088956,1704315032662,-2975.9181484,0.00024981,2]
[310088959,1704315032673,-8632.20142762,0.00024981,2]
[310088962,1704315032684,-159.98061969,0.00024981,2]
[310088965,1704315032693,-775.06288642,0.00024982,2]
[310088968,1704315032702,-288.74290699,0.00024982,2]
[310088971,1704315032712,-155.0,0.00024982,2]
[310088974,1704315032721,-699.93657888,0.00024982,2]
[310088976,1704315032731,-155.0,0.00024982,2]
[310088978,1704315032741,-191.51289122,0.00024982,2]
[310088980,1704315032751,-158.35556998,0.00024982,2]
[310088981,1704315032760,-285.98430451,0.00024982,2]
[310088982,1704315032770,-261.67078312,0.00024982,2]
[310088983,1704315032779,-1668.74185083,0.00024982,2]
[310088984,1704315032789,-164.16238572,0.00024982,2]
[310088985,1704315032798,-400.12043564,0.00024982,2]
[310088986,1704315032808,-214.24001035,0.00024982,2]
[310088987,1704315032818,-210.2658615,0.00024982,2]
[310088988,1704315032828,-269.79300461,0.00024982,2]
[310088989,1704315032837,-186.20647521,0.00024982,2]
[310088990,1704315032847,-752.76048375,0.00024982,2]
[310088991,1704315032857,-1702.20080951,0.00024982,2]
[310088993,1704315032867,-295.08,0.0002504,2]
[310088995,1704315032876,-171.86,0.00025205,2]
[310088997,1704315032885,-210.0,0.00025487,2]
[310088999,1704315032894,-171.86,0.00025993,2]
[310089001,1704315032904,-295.08,0.00026019,2]
[310089003,1704315032914,-158.17684614,0.00026192,2]
[310089005,1704315032923,-1982.38388394,0.00026208,3]
[310089007,1704315032933,-367.94603187,0.00026208,2]
[310089009,1704315032944,-326.53,0.00026291,2]
[310089010,1704315032953,-393.52900517,0.00026305,2]
[310089013,1704315032963,-706.51362449,0.00026305,2]
[310089015,1704315032973,-1261.35232685,0.00026306,2]
[310089017,1704315032982,-240102.48052508,0.00026307,2]
[310089019,1704315032992,-150.99,0.00026308,2]
[310089021,1704315033001,-5000.0,0.00026308,2]
[310089022,1704315033011,-166.52,0.00026424,2]
[310089025,1704315033021,-155.91507859,0.00026727,2]
[310089026,1704315033030,-180.53,0.00026971,2]
[310089029,1704315033039,-295.08,0.00026997,2]
[310089031,1704315033048,-865.55639907,0.000274,2]
[310089032,1704315033058,-671.79585293,0.000275,4]
[310089034,1704315033067,-1982.3838839,0.00027621,3]
[310089037,1704315033076,-1000.0,0.00027895,2]
[310089039,1704315033086,-200.0,0.00027934,2]
[310089041,1704315033095,-1019.82327101,0.00027965,2]
[310089042,1704315033104,-295.08,0.00027976,2]
[310089045,1704315033113,-161.05,0.00028187,2]
[310089047,1704315033124,-1208.34884825,0.0002819,2]
[310089048,1704315033135,-176.88,0.00028535,2]
[310089050,1704315033146,-161.05,0.00028539,2]
[310089051,1704315033155,-326.53,0.00028554,2]
[310089052,1704315033164,-6586.47531859,0.00028716,2]
[310089053,1704315033173,-161.05,0.00028891,2]
[310089054,1704315033182,-295.08,0.00028954,2]
[310089055,1704315033191,-1982.3838839,0.00029034,4]